[Event "Titled Tuesday Blitz December 20 Late 2022"]
[White "Haszon, David"]
[Black "Carbone, Diego"]
[WhiteFideId "733610"]
[BlackFideId "3002179"]
[WhiteElo "2210"]
[BlackElo "2266"]
[Result "1-0"]
[Round "04"]
[TimeControl "180+1"]
[Date "2022.12.21"]
[WhiteClock "0:00:15"]
[BlackClock "0:00:04"]

1. d4 {[%clk 0:03:00]}  Nf6 {[%clk 0:02:59]} 2. Bf4 {[%clk 0:03:00]}  d5 {[%clk 0:02:52]} 3. e3 {[%clk 0:02:59]}  e6 {[%clk 0:02:51]} 4. Nf3 {[%clk 0:02:58]}  Bd6 {[%clk 0:02:50]} 5. Bg3 {[%clk 0:02:58]}  b6 {[%clk 0:02:46]} 6. Bd3 {[%clk 0:02:53]}  O-O {[%clk 0:02:46]} 7. Nbd2 {[%clk 0:02:51]}  Ba6 {[%clk 0:02:44]} 8. Ne5 {[%clk 0:02:43]}  Bxd3 {[%clk 0:02:43]} 9. cxd3 {[%clk 0:02:44]}  c5 {[%clk 0:02:42]} 10. dxc5 {[%clk 0:02:42]}  bxc5 {[%clk 0:02:41]} 11. O-O {[%clk 0:02:38]}  Qc7 {[%clk 0:02:37]} 12. d4 {[%clk 0:02:28]}  Nbd7 {[%clk 0:02:29]} 13. Ndf3 {[%clk 0:02:17]}  Ne4 {[%clk 0:02:26]} 14. Nxd7 {[%clk 0:02:16]}  Qxd7 {[%clk 0:02:08]} 15. Bxd6 {[%clk 0:02:14]}  Qxd6 {[%clk 0:02:07]} 16. dxc5 {[%clk 0:02:12]}  Qxc5 {[%clk 0:02:07]} 17. Qd4 {[%clk 0:02:11]}  Rfc8 {[%clk 0:01:59]} 18. b4 {[%clk 0:01:55]}  Qc2 {[%clk 0:01:43]} 19. b5 {[%clk 0:01:39]}  Rc4 {[%clk 0:01:42]} 20. Qe5 {[%clk 0:01:39]}  Rac8 {[%clk 0:01:41]} 21. a4 {[%clk 0:01:23]}  Rxa4 {[%clk 0:01:35]} 22. Rxa4 {[%clk 0:01:20]}  Qxa4 {[%clk 0:01:36]} 23. Nd4 {[%clk 0:01:17]}  Qa2 {[%clk 0:00:42]} 24. Nxe6 {[%clk 0:01:14]}  f6 {[%clk 0:00:28]} 25. Qf5 {[%clk 0:00:54]}  Rc2 {[%clk 0:00:24]} 26. Nd4 {[%clk 0:00:42]}  Rd2 {[%clk 0:00:23]} 27. Qc8+ {[%clk 0:00:36]}  Kf7 {[%clk 0:00:22]} 28. Qd7+ {[%clk 0:00:36]}  Kg6 {[%clk 0:00:21]} 29. Qg4+ {[%clk 0:00:37]}  Kf7 {[%clk 0:00:21]} 30. Qh5+ {[%clk 0:00:36]}  Kf8 {[%clk 0:00:18]} 31. Qf5 {[%clk 0:00:21]}  g6 {[%clk 0:00:14]} 32. Qf4 {[%clk 0:00:16]}  Kg7 {[%clk 0:00:11]} 33. h4 {[%clk 0:00:16]}  h5 {[%clk 0:00:11]} 34. Qc7+ {[%clk 0:00:16]}  Kh6 {[%clk 0:00:11]} 35. Ne6 {[%clk 0:00:15]}  Rxf2 {[%clk 0:00:04]} 36. Qg7# {[%clk 0:00:15]} 1-0


[Site "https://www.chess.com"]

[Event "Titled Tuesday Blitz December 20 Late 2022"]
[White "Hoffmann, Asa"]
[Black "Marcolino, Daniel Mattos"]
[WhiteFideId "2001470"]
[BlackFideId "2106841"]
[WhiteElo "2117"]
[BlackElo "2133"]
[Result "1-0"]
[Round "04"]
[TimeControl "180+1"]
[Date "2022.12.21"]
[WhiteClock "0:01:26"]
[BlackClock "0:00:02"]

1. d4 {[%clk 0:02:58]}  d5 {[%clk 0:02:59]} 2. Bg5 {[%clk 0:02:55]}  Nd7 {[%clk 0:02:53]} 3. c4 {[%clk 0:02:54]}  h6 {[%clk 0:02:43]} 4. Bh4 {[%clk 0:02:54]}  dxc4 {[%clk 0:02:41]} 5. Nc3 {[%clk 0:02:52]}  Ngf6 {[%clk 0:02:39]} 6. e4 {[%clk 0:02:52]}  Nb6 {[%clk 0:02:17]} 7. Bxc4 {[%clk 0:02:36]}  Nxc4 {[%clk 0:02:03]} 8. Qa4+ {[%clk 0:02:35]}  Qd7 {[%clk 0:01:31]} 9. Qxc4 {[%clk 0:02:34]}  a6 {[%clk 0:01:29]} 10. Nf3 {[%clk 0:02:33]}  b5 {[%clk 0:01:25]} 11. Qb3 {[%clk 0:02:28]}  Bb7 {[%clk 0:01:25]} 12. Ne5 {[%clk 0:02:26]}  Qe6 {[%clk 0:01:13]} 13. Qxe6 {[%clk 0:02:24]}  fxe6 {[%clk 0:01:13]} 14. f3 {[%clk 0:02:24]}  g5 {[%clk 0:01:00]} 15. Bf2 {[%clk 0:02:21]}  Nd7 {[%clk 0:00:59]} 16. Ng6 {[%clk 0:02:12]}  Rg8 {[%clk 0:00:59]} 17. Nxf8 {[%clk 0:02:12]}  Kxf8 {[%clk 0:00:59]} 18. h4 {[%clk 0:02:09]}  g4 {[%clk 0:00:58]} 19. Be3 {[%clk 0:02:03]}  h5 {[%clk 0:00:51]} 20. O-O-O {[%clk 0:01:55]}  gxf3 {[%clk 0:00:49]} 21. gxf3 {[%clk 0:01:54]}  Kf7 {[%clk 0:00:47]} 22. Rhg1 {[%clk 0:01:53]}  Nb6 {[%clk 0:00:29]} 23. b3 {[%clk 0:01:51]}  Bc6 {[%clk 0:00:18]} 24. Bf4 {[%clk 0:01:49]}  a5 {[%clk 0:00:13]} 25. Bxc7 {[%clk 0:01:45]}  Rxg1 {[%clk 0:00:08]} 26. Rxg1 {[%clk 0:01:44]}  Nd7 {[%clk 0:00:07]} 27. d5 {[%clk 0:01:44]}  exd5 {[%clk 0:00:06]} 28. exd5 {[%clk 0:01:43]}  Bb7 {[%clk 0:00:06]} 29. Kb2 {[%clk 0:01:38]}  Nf6 {[%clk 0:00:06]} 30. Nxb5 {[%clk 0:01:34]}  Nxd5 {[%clk 0:00:04]} 31. Be5 {[%clk 0:01:31]}  Ne3 {[%clk 0:00:02]} 32. Nd4 {[%clk 0:01:26]} 1-0


[Site "https://www.chess.com"]

[Event "Titled Tuesday Blitz December 20 Late 2022"]
[White "Ibarra Jerez, Jose Carlos"]
[Black "Yedidia, Daniel"]
[WhiteFideId "2226332"]
[BlackFideId "30905907"]
[WhiteElo "2638"]
[BlackElo "2571"]
[Result "1-0"]
[Round "04"]
[TimeControl "180+1"]
[Date "2022.12.20"]
[WhiteClock "0:00:27"]
[BlackClock "0:00:02"]

1. e4 {[%clk 0:03:00]}  g6 {[%clk 0:02:57]} 2. d4 {[%clk 0:03:00]}  Bg7 {[%clk 0:02:57]} 3. Nf3 {[%clk 0:03:01]}  c6 {[%clk 0:02:57]} 4. Nc3 {[%clk 0:03:00]}  d5 {[%clk 0:02:58]} 5. Bf4 {[%clk 0:03:01]}  dxe4 {[%clk 0:02:56]} 6. Nxe4 {[%clk 0:03:01]}  Nf6 {[%clk 0:02:55]} 7. Nxf6+ {[%clk 0:03:01]}  Bxf6 {[%clk 0:02:55]} 8. Bc4 {[%clk 0:02:57]}  O-O {[%clk 0:02:55]} 9. h3 {[%clk 0:02:53]}  b5 {[%clk 0:02:38]} 10. Bb3 {[%clk 0:02:50]}  Bb7 {[%clk 0:02:20]} 11. O-O {[%clk 0:02:44]}  c5 {[%clk 0:02:19]} 12. dxc5 {[%clk 0:02:40]}  Bxb2 {[%clk 0:02:18]} 13. Rb1 {[%clk 0:02:39]}  Bg7 {[%clk 0:02:07]} 14. Ng5 {[%clk 0:02:17]}  Nc6 {[%clk 0:01:47]} 15. Bd5 {[%clk 0:01:37]}  a6 {[%clk 0:01:05]} 16. c4 {[%clk 0:01:32]}  e6 {[%clk 0:00:56]} 17. Bf3 {[%clk 0:01:25]}  b4 {[%clk 0:00:40]} 18. Qa4 {[%clk 0:01:14]}  Rc8 {[%clk 0:00:32]} 19. Rfd1 {[%clk 0:01:13]}  Qf6 {[%clk 0:00:25]} 20. Be3 {[%clk 0:01:13]}  Qe7 {[%clk 0:00:06]} 21. Rd6 {[%clk 0:01:01]}  Ne5 {[%clk 0:00:05]} 22. Bxb7 {[%clk 0:00:55]}  Qxb7 {[%clk 0:00:06]} 23. Rxb4 {[%clk 0:00:53]}  Qc7 {[%clk 0:00:03]} 24. Rbb6 {[%clk 0:00:39]}  h6 {[%clk 0:00:03]} 25. Ne4 {[%clk 0:00:36]}  Rfd8 {[%clk 0:00:02]} 26. f4 {[%clk 0:00:33]}  Rxd6 {[%clk 0:00:02]} 27. Nxd6 {[%clk 0:00:30]}  Nd7 {[%clk 0:00:01]} 28. Nxc8 {[%clk 0:00:30]}  Nxb6 {[%clk 0:00:01]} 29. Nxb6 {[%clk 0:00:29]}  Bf8 {[%clk 0:00:02]} 30. Qd7 {[%clk 0:00:27]} 1-0


[Site "https://www.chess.com"]

[Event "Titled Tuesday Blitz December 20 Late 2022"]
[White "Indjic, Aleksandar"]
[Black "Tologon tegin, Semetei"]
[WhiteFideId "911925"]
[BlackFideId "13800574"]
[WhiteElo "2616"]
[BlackElo "2264"]
[Result "1-0"]
[Round "04"]
[TimeControl "180+1"]
[Date "2022.12.20"]
[WhiteClock "0:00:21"]
[BlackClock "0:00:05"]

1. d4 {[%clk 0:02:52]}  Nf6 {[%clk 0:02:43]} 2. c4 {[%clk 0:02:52]}  e6 {[%clk 0:02:43]} 3. Nf3 {[%clk 0:02:52]}  Bb4+ {[%clk 0:02:43]} 4. Nbd2 {[%clk 0:02:52]}  b6 {[%clk 0:02:39]} 5. a3 {[%clk 0:02:50]}  Bxd2+ {[%clk 0:02:36]} 6. Qxd2 {[%clk 0:02:51]}  Ba6 {[%clk 0:02:36]} 7. e3 {[%clk 0:02:51]}  d5 {[%clk 0:02:33]} 8. b3 {[%clk 0:02:47]}  O-O {[%clk 0:02:32]} 9. Bb2 {[%clk 0:02:46]}  Nbd7 {[%clk 0:02:25]} 10. Be2 {[%clk 0:02:30]}  Ne4 {[%clk 0:02:25]} 11. Qc2 {[%clk 0:02:30]}  Ndf6 {[%clk 0:02:14]} 12. Ne5 {[%clk 0:02:24]}  c5 {[%clk 0:02:00]} 13. O-O {[%clk 0:02:23]}  cxd4 {[%clk 0:01:59]} 14. exd4 {[%clk 0:02:22]}  Rc8 {[%clk 0:01:58]} 15. a4 {[%clk 0:02:17]}  Qc7 {[%clk 0:01:51]} 16. Rac1 {[%clk 0:02:12]}  Rfd8 {[%clk 0:01:50]} 17. Bd3 {[%clk 0:02:11]}  Qb7 {[%clk 0:01:45]} 18. Qe2 {[%clk 0:02:01]}  h6 {[%clk 0:01:41]} 19. Qe3 {[%clk 0:01:51]}  Nd7 {[%clk 0:01:20]} 20. Nxd7 {[%clk 0:01:43]}  Rxd7 {[%clk 0:01:15]} 21. Bxe4 {[%clk 0:01:43]}  dxe4 {[%clk 0:01:14]} 22. Rce1 {[%clk 0:01:43]}  Qc6 {[%clk 0:00:38]} 23. Qxe4 {[%clk 0:01:43]}  Qxe4 {[%clk 0:00:39]} 24. Rxe4 {[%clk 0:01:43]}  Bb7 {[%clk 0:00:39]} 25. Re5 {[%clk 0:01:42]}  Bc6 {[%clk 0:00:32]} 26. f3 {[%clk 0:01:41]}  a6 {[%clk 0:00:27]} 27. Rc1 {[%clk 0:01:39]}  Bb7 {[%clk 0:00:20]} 28. Kf2 {[%clk 0:01:37]}  Kf8 {[%clk 0:00:19]} 29. h4 {[%clk 0:01:35]}  Rdc7 {[%clk 0:00:12]} 30. h5 {[%clk 0:01:34]}  Kg8 {[%clk 0:00:12]} 31. Re2 {[%clk 0:01:29]}  Rd8 {[%clk 0:00:12]} 32. Ke3 {[%clk 0:01:26]}  Bc8 {[%clk 0:00:12]} 33. Rd2 {[%clk 0:01:13]}  f6 {[%clk 0:00:12]} 34. Rcd1 {[%clk 0:01:11]}  Kf7 {[%clk 0:00:12]} 35. g4 {[%clk 0:01:11]}  Re7 {[%clk 0:00:11]} 36. Ba3 {[%clk 0:01:07]}  Red7 {[%clk 0:00:11]} 37. Bb4 {[%clk 0:01:07]}  Bb7 {[%clk 0:00:11]} 38. Bc3 {[%clk 0:01:04]}  Re8 {[%clk 0:00:11]} 39. Kf2 {[%clk 0:00:59]}  Rc8 {[%clk 0:00:11]} 40. Bb4 {[%clk 0:00:58]}  Rcd8 {[%clk 0:00:12]} 41. a5 {[%clk 0:00:53]}  b5 {[%clk 0:00:09]} 42. Bc5 {[%clk 0:00:53]}  bxc4 {[%clk 0:00:09]} 43. bxc4 {[%clk 0:00:52]}  Bc6 {[%clk 0:00:09]} 44. Rb1 {[%clk 0:00:51]}  Rb7 {[%clk 0:00:09]} 45. Rxb7+ {[%clk 0:00:50]}  Bxb7 {[%clk 0:00:09]} 46. Rb2 {[%clk 0:00:50]}  Rd7 {[%clk 0:00:10]} 47. Rb6 {[%clk 0:00:48]}  Rc7 {[%clk 0:00:10]} 48. Ke3 {[%clk 0:00:48]}  e5 {[%clk 0:00:10]} 49. dxe5 {[%clk 0:00:33]}  fxe5 {[%clk 0:00:07]} 50. Bd6 {[%clk 0:00:32]}  Rd7 {[%clk 0:00:06]} 51. Bxe5 {[%clk 0:00:32]}  Re7 {[%clk 0:00:07]} 52. f4 {[%clk 0:00:27]}  Bc8 {[%clk 0:00:07]} 53. Rg6 {[%clk 0:00:27]}  Rb7 {[%clk 0:00:06]} 54. Rxg7+ {[%clk 0:00:25]}  Ke8 {[%clk 0:00:07]} 55. Rxb7 {[%clk 0:00:25]}  Bxb7 {[%clk 0:00:07]} 56. f5 {[%clk 0:00:25]}  Kf7 {[%clk 0:00:07]} 57. Bf4 {[%clk 0:00:25]}  Bg2 {[%clk 0:00:07]} 58. Bxh6 {[%clk 0:00:23]}  Bf1 {[%clk 0:00:07]} 59. c5 {[%clk 0:00:23]}  Bb5 {[%clk 0:00:08]} 60. g5 {[%clk 0:00:22]}  Bd7 {[%clk 0:00:07]} 61. Kf4 {[%clk 0:00:21]}  Kg8 {[%clk 0:00:07]} 62. Ke5 {[%clk 0:00:20]}  Kf7 {[%clk 0:00:07]} 63. g6+ {[%clk 0:00:20]}  Kg8 {[%clk 0:00:07]} 64. Bg5 {[%clk 0:00:20]}  Bc6 {[%clk 0:00:05]} 65. h6 {[%clk 0:00:21]}  Ba4 {[%clk 0:00:05]} 66. Bf6 {[%clk 0:00:21]} 1-0


[Site "https://www.chess.com"]

[Event "Titled Tuesday Blitz December 20 Late 2022"]
[White "Itkis, Boris"]
[Black "Radovanovic, Dusan"]
[WhiteFideId "1209167"]
[BlackFideId "926868"]
[WhiteElo "2216"]
[BlackElo "2337"]
[Result "1-0"]
[Round "04"]
[TimeControl "180+1"]
[Date "2022.12.21"]
[WhiteClock "0:00:09"]
[BlackClock "0:00:08"]

1. c4 {[%clk 0:03:00]}  e5 {[%clk 0:02:59]} 2. Nf3 {[%clk 0:03:00]}  Nc6 {[%clk 0:02:59]} 3. Nc3 {[%clk 0:03:00]}  Nf6 {[%clk 0:02:59]} 4. e4 {[%clk 0:03:00]}  Bb4 {[%clk 0:02:58]} 5. d3 {[%clk 0:02:58]}  d6 {[%clk 0:02:56]} 6. a3 {[%clk 0:02:57]}  Bc5 {[%clk 0:02:41]} 7. b4 {[%clk 0:02:51]}  Bb6 {[%clk 0:02:41]} 8. Be3 {[%clk 0:02:47]}  Bg4 {[%clk 0:02:36]} 9. Be2 {[%clk 0:02:45]}  Bxf3 {[%clk 0:02:32]} 10. Bxf3 {[%clk 0:02:39]}  Nd4 {[%clk 0:02:32]} 11. Na4 {[%clk 0:02:30]}  Nxf3+ {[%clk 0:02:27]} 12. Qxf3 {[%clk 0:02:29]}  Bxe3 {[%clk 0:02:28]} 13. fxe3 {[%clk 0:02:27]}  O-O {[%clk 0:02:27]} 14. O-O {[%clk 0:02:19]}  a5 {[%clk 0:02:21]} 15. b5 {[%clk 0:02:19]}  Nd7 {[%clk 0:02:20]} 16. Ra2 {[%clk 0:02:15]}  b6 {[%clk 0:02:20]} 17. h3 {[%clk 0:02:06]}  Qe7 {[%clk 0:02:13]} 18. Kf2 {[%clk 0:01:48]}  Nc5 {[%clk 0:02:08]} 19. Nxc5 {[%clk 0:01:47]}  dxc5 {[%clk 0:02:09]} 20. Ke1 {[%clk 0:01:43]}  Rad8 {[%clk 0:02:10]} 21. Rd2 {[%clk 0:01:38]}  Rd6 {[%clk 0:02:10]} 22. g4 {[%clk 0:01:38]}  Rfd8 {[%clk 0:02:10]} 23. Ke2 {[%clk 0:01:37]}  Qd7 {[%clk 0:02:04]} 24. Rfd1 {[%clk 0:01:36]}  c6 {[%clk 0:02:00]} 25. a4 {[%clk 0:01:26]}  cxb5 {[%clk 0:02:00]} 26. axb5 {[%clk 0:01:24]}  a4 {[%clk 0:01:58]} 27. Qf5 {[%clk 0:01:23]}  Qe7 {[%clk 0:01:49]} 28. Ra1 {[%clk 0:01:21]}  g6 {[%clk 0:01:40]} 29. Qf1 {[%clk 0:01:15]}  Qd7 {[%clk 0:01:30]} 30. Qb1 {[%clk 0:01:09]}  h5 {[%clk 0:01:25]} 31. gxh5 {[%clk 0:00:59]}  Qxh3 {[%clk 0:01:25]} 32. hxg6 {[%clk 0:00:59]}  Rxg6 {[%clk 0:01:18]} 33. Qf1 {[%clk 0:00:43]}  Rg2+ {[%clk 0:00:48]} 34. Kd1 {[%clk 0:00:42]}  Qg4+ {[%clk 0:00:24]} 35. Kc2 {[%clk 0:00:42]}  Rg3 {[%clk 0:00:22]} 36. Rxa4 {[%clk 0:00:32]}  Kg7 {[%clk 0:00:22]} 37. Ra7 {[%clk 0:00:31]}  Rf8 {[%clk 0:00:20]} 38. Rf2 {[%clk 0:00:31]}  Qg6 {[%clk 0:00:19]} 39. Kd2 {[%clk 0:00:27]}  Rg1 {[%clk 0:00:18]} 40. Qe2 {[%clk 0:00:24]}  Rg3 {[%clk 0:00:18]} 41. Kc3 {[%clk 0:00:21]}  Rg1 {[%clk 0:00:18]} 42. Ra2 {[%clk 0:00:16]}  Rc1+ {[%clk 0:00:18]} 43. Kb2 {[%clk 0:00:16]}  Rg1 {[%clk 0:00:18]} 44. Kb3 {[%clk 0:00:15]}  Rg3 {[%clk 0:00:18]} 45. Rg2 {[%clk 0:00:15]}  Rxg2 {[%clk 0:00:16]} 46. Qxg2 {[%clk 0:00:16]}  Rh8 {[%clk 0:00:16]} 47. Qxg6+ {[%clk 0:00:16]}  Kxg6 {[%clk 0:00:17]} 48. Kc3 {[%clk 0:00:16]}  Rh3 {[%clk 0:00:16]} 49. Ra6 {[%clk 0:00:15]}  Rxe3 {[%clk 0:00:16]} 50. Rxb6+ {[%clk 0:00:16]}  Kg5 {[%clk 0:00:16]} 51. Rc6 {[%clk 0:00:16]}  f5 {[%clk 0:00:16]} 52. exf5 {[%clk 0:00:16]}  Kxf5 {[%clk 0:00:17]} 53. Rxc5 {[%clk 0:00:17]}  Kf4 {[%clk 0:00:16]} 54. b6 {[%clk 0:00:17]}  e4 {[%clk 0:00:17]} 55. b7 {[%clk 0:00:15]}  Rxd3+ {[%clk 0:00:17]} 56. Kb4 {[%clk 0:00:12]}  Rd1 {[%clk 0:00:17]} 57. b8=Q+ {[%clk 0:00:13]}  Kf3 {[%clk 0:00:16]} 58. Qf8+ {[%clk 0:00:13]}  Ke2 {[%clk 0:00:16]} 59. Re5 {[%clk 0:00:12]}  e3 {[%clk 0:00:16]} 60. Qf4 {[%clk 0:00:10]}  Rd3 {[%clk 0:00:15]} 61. c5 {[%clk 0:00:08]}  Kd2 {[%clk 0:00:10]} 62. Qxe3+ {[%clk 0:00:07]}  Rxe3 {[%clk 0:00:10]} 63. Rxe3 {[%clk 0:00:08]}  Kxe3 {[%clk 0:00:08]} 64. c6 {[%clk 0:00:09]} 1-0


[Site "https://www.chess.com"]

[Event "Titled Tuesday Blitz December 20 Late 2022"]
[White "Jumabayev, Rinat"]
[Black "Gomes, Luiz Alexandre de Souza"]
[WhiteFideId "13702661"]
[BlackFideId "2102790"]
[WhiteElo "2584"]
[BlackElo "2384"]
[Result "1-0"]
[Round "04"]
[TimeControl "180+1"]
[Date "2022.12.21"]
[WhiteClock "0:02:05"]
[BlackClock "0:00:13"]

1. Nf3 {[%clk 0:03:00]}  Nf6 {[%clk 0:02:59]} 2. c4 {[%clk 0:03:00]}  e6 {[%clk 0:02:57]} 3. g3 {[%clk 0:02:59]}  d5 {[%clk 0:02:58]} 4. Bg2 {[%clk 0:02:59]}  Be7 {[%clk 0:02:57]} 5. O-O {[%clk 0:03:00]}  O-O {[%clk 0:02:58]} 6. d4 {[%clk 0:02:58]}  c6 {[%clk 0:02:57]} 7. Qc2 {[%clk 0:02:57]}  Nbd7 {[%clk 0:02:57]} 8. Nbd2 {[%clk 0:02:56]}  b6 {[%clk 0:02:56]} 9. e4 {[%clk 0:02:56]}  dxe4 {[%clk 0:02:55]} 10. Nxe4 {[%clk 0:02:56]}  Bb7 {[%clk 0:02:56]} 11. Rd1 {[%clk 0:02:53]}  Qc8 {[%clk 0:02:55]} 12. Nxf6+ {[%clk 0:02:48]}  Nxf6 {[%clk 0:02:55]} 13. c5 {[%clk 0:02:49]}  Rd8 {[%clk 0:02:54]} 14. Bf4 {[%clk 0:02:45]}  Nd5 {[%clk 0:02:52]} 15. Bd2 {[%clk 0:02:45]}  bxc5 {[%clk 0:02:47]} 16. dxc5 {[%clk 0:02:46]}  a5 {[%clk 0:02:47]} 17. a3 {[%clk 0:02:46]}  a4 {[%clk 0:02:44]} 18. Ng5 {[%clk 0:02:42]}  Bxg5 {[%clk 0:02:39]} 19. Bxg5 {[%clk 0:02:42]}  Rd7 {[%clk 0:02:39]} 20. Be4 {[%clk 0:02:39]}  h6 {[%clk 0:02:38]} 21. Bd2 {[%clk 0:02:36]}  Ba6 {[%clk 0:02:31]} 22. Re1 {[%clk 0:02:34]}  Bc4 {[%clk 0:02:30]} 23. Qxc4 {[%clk 0:02:33]}  Rb7 {[%clk 0:00:43]} 24. Rab1 {[%clk 0:02:29]}  Qb8 {[%clk 0:00:39]} 25. Qc2 {[%clk 0:02:19]}  Rb3 {[%clk 0:00:38]} 26. Bd3 {[%clk 0:02:17]}  Qb7 {[%clk 0:00:28]} 27. Bc4 {[%clk 0:02:16]}  Rf3 {[%clk 0:00:28]} 28. Kg2 {[%clk 0:02:15]}  Rf6 {[%clk 0:00:27]} 29. Re4 {[%clk 0:02:14]}  Qa7 {[%clk 0:00:14]} 30. Be2 {[%clk 0:02:14]}  Rb8 {[%clk 0:00:14]} 31. Rxa4 {[%clk 0:02:11]}  Qb7 {[%clk 0:00:13]} 32. Rc4 {[%clk 0:02:07]}  Qb3 {[%clk 0:00:13]} 33. Qxb3 {[%clk 0:02:07]}  Rxb3 {[%clk 0:00:13]} 34. Rc2 {[%clk 0:02:05]} 1-0


[Site "https://www.chess.com"]

[Event "Titled Tuesday Blitz December 20 Late 2022"]
[White "Kalajzic, Ivan"]
[Black "Aghasiyev, Kamal"]
[WhiteFideId "14506378"]
[BlackFideId "13402854"]
[WhiteElo "2163"]
[BlackElo "2341"]
[Result "1-0"]
[Round "04"]
[TimeControl "180+1"]
[Date "2022.12.21"]
[WhiteClock "0:00:24"]
[BlackClock "0:00:01"]

1. b3 {[%clk 0:03:00]}  e5 {[%clk 0:02:49]} 2. Bb2 {[%clk 0:03:01]}  Nc6 {[%clk 0:02:48]} 3. e3 {[%clk 0:03:01]}  Nf6 {[%clk 0:02:44]} 4. Bb5 {[%clk 0:03:01]}  Bd6 {[%clk 0:02:38]} 5. Na3 {[%clk 0:03:01]}  a6 {[%clk 0:02:32]} 6. Be2 {[%clk 0:03:01]}  Be7 {[%clk 0:02:19]} 7. Nf3 {[%clk 0:02:50]}  e4 {[%clk 0:02:10]} 8. Nd4 {[%clk 0:02:49]}  Nxd4 {[%clk 0:02:09]} 9. exd4 {[%clk 0:02:50]}  d5 {[%clk 0:02:06]} 10. c4 {[%clk 0:02:43]}  O-O {[%clk 0:02:03]} 11. O-O {[%clk 0:02:35]}  c6 {[%clk 0:01:06]} 12. Nc2 {[%clk 0:02:33]}  Bd6 {[%clk 0:01:05]} 13. Ne3 {[%clk 0:02:30]}  Re8 {[%clk 0:01:01]} 14. d3 {[%clk 0:02:18]}  Bc7 {[%clk 0:00:50]} 15. dxe4 {[%clk 0:02:07]}  Nxe4 {[%clk 0:00:49]} 16. Bg4 {[%clk 0:01:50]}  Nxf2 {[%clk 0:00:38]} 17. Rxf2 {[%clk 0:01:38]}  Rxe3 {[%clk 0:00:37]} 18. Bxc8 {[%clk 0:01:33]}  Rxc8 {[%clk 0:00:37]} 19. Qg4 {[%clk 0:01:30]}  Re4 {[%clk 0:00:32]} 20. Qh3 {[%clk 0:01:27]}  Qe8 {[%clk 0:00:22]} 21. Raf1 {[%clk 0:01:25]}  f6 {[%clk 0:00:20]} 22. cxd5 {[%clk 0:01:20]}  cxd5 {[%clk 0:00:18]} 23. Rf5 {[%clk 0:01:04]}  Re2 {[%clk 0:00:15]} 24. Bc1 {[%clk 0:00:59]}  Bb6 {[%clk 0:00:11]} 25. Kh1 {[%clk 0:00:57]}  Qe6 {[%clk 0:00:08]} 26. Qg3 {[%clk 0:00:45]}  Bxd4 {[%clk 0:00:06]} 27. Bh6 {[%clk 0:00:44]}  g6 {[%clk 0:00:04]} 28. R5f3 {[%clk 0:00:30]}  Be5 {[%clk 0:00:04]} 29. Bf4 {[%clk 0:00:29]}  Re4 {[%clk 0:00:04]} 30. Bxe5 {[%clk 0:00:27]}  Qxe5 {[%clk 0:00:04]} 31. Rxf6 {[%clk 0:00:26]}  Qxg3 {[%clk 0:00:04]} 32. hxg3 {[%clk 0:00:27]}  Re7 {[%clk 0:00:03]} 33. Rd6 {[%clk 0:00:26]}  Re2 {[%clk 0:00:03]} 34. Rxd5 {[%clk 0:00:24]}  Rcc2 {[%clk 0:00:03]} 35. Rg1 {[%clk 0:00:24]}  Rxa2 {[%clk 0:00:03]} 36. Rd7 {[%clk 0:00:24]}  b5 {[%clk 0:00:02]} 37. Rc1 {[%clk 0:00:24]}  Rxg2 {[%clk 0:00:01]} 38. Rc8# {[%clk 0:00:24]} 1-0


[Site "https://www.chess.com"]

[Event "Titled Tuesday Blitz December 20 Late 2022"]
[White "Kamsky, Gata"]
[Black "Jaracz, Pawel"]
[WhiteFideId "2000024"]
[BlackFideId "1102222"]
[WhiteElo "2666"]
[BlackElo "2460"]
[Result "1/2-1/2"]
[Round "04"]
[TimeControl "180+1"]
[Date "2022.12.20"]
[WhiteClock "0:02:44"]
[BlackClock "0:02:53"]

1. e4 {[%clk 0:03:00]}  c5 {[%clk 0:02:58]} 2. Nf3 {[%clk 0:02:59]}  e6 {[%clk 0:02:59]} 3. d4 {[%clk 0:02:54]}  cxd4 {[%clk 0:02:59]} 4. Nxd4 {[%clk 0:02:54]}  Nc6 {[%clk 0:02:59]} 5. Nb5 {[%clk 0:02:52]}  d6 {[%clk 0:02:59]} 6. c4 {[%clk 0:02:52]}  Nf6 {[%clk 0:02:58]} 7. N1c3 {[%clk 0:02:52]}  a6 {[%clk 0:02:58]} 8. Nd4 {[%clk 0:02:52]}  Be7 {[%clk 0:02:55]} 9. Be2 {[%clk 0:02:52]}  O-O {[%clk 0:02:55]} 10. O-O {[%clk 0:02:52]}  d5 {[%clk 0:02:55]} 11. cxd5 {[%clk 0:02:49]}  exd5 {[%clk 0:02:54]} 12. exd5 {[%clk 0:02:45]}  Nxd5 {[%clk 0:02:54]} 13. Nxd5 {[%clk 0:02:44]}  Qxd5 {[%clk 0:02:53]} 14. Nxc6 {[%clk 0:02:44]} 1/2-1/2


[Site "https://www.chess.com"]

[Event "Titled Tuesday Blitz December 20 Late 2022"]
[White "Kim, Sergey"]
[Black "Holt, Conrad"]
[WhiteFideId "13700570"]
[BlackFideId "2034387"]
[WhiteElo "2501"]
[BlackElo "2592"]
[Result "0-1"]
[Round "04"]
[TimeControl "180+1"]
[Date "2022.12.20"]
[WhiteClock "0:00:29"]
[BlackClock "0:00:24"]

1. d4 {[%clk 0:03:00]}  d5 {[%clk 0:02:59]} 2. c4 {[%clk 0:03:01]}  c6 {[%clk 0:02:59]} 3. Nf3 {[%clk 0:03:00]}  Nf6 {[%clk 0:02:58]} 4. Qc2 {[%clk 0:03:00]}  dxc4 {[%clk 0:02:57]} 5. Qxc4 {[%clk 0:02:59]}  Bf5 {[%clk 0:02:57]} 6. e3 {[%clk 0:03:00]}  Nbd7 {[%clk 0:02:57]} 7. Bd3 {[%clk 0:03:00]}  Bg4 {[%clk 0:02:49]} 8. Nbd2 {[%clk 0:02:56]}  e6 {[%clk 0:02:47]} 9. O-O {[%clk 0:02:55]}  Be7 {[%clk 0:02:43]} 10. e4 {[%clk 0:02:55]}  O-O {[%clk 0:02:42]} 11. Re1 {[%clk 0:02:53]}  c5 {[%clk 0:02:40]} 12. e5 {[%clk 0:02:47]}  Nd5 {[%clk 0:02:39]} 13. Be4 {[%clk 0:02:35]}  Rc8 {[%clk 0:02:29]} 14. Qd3 {[%clk 0:02:28]}  Kh8 {[%clk 0:02:14]} 15. a3 {[%clk 0:02:27]}  cxd4 {[%clk 0:02:07]} 16. Bxh7 {[%clk 0:02:21]}  Nc5 {[%clk 0:01:58]} 17. Qb1 {[%clk 0:02:13]}  g6 {[%clk 0:01:55]} 18. Bxg6 {[%clk 0:02:12]}  fxg6 {[%clk 0:01:53]} 19. Qxg6 {[%clk 0:02:12]}  Bf5 {[%clk 0:01:52]} 20. Qh6+ {[%clk 0:02:06]}  Bh7 {[%clk 0:01:52]} 21. Ne4 {[%clk 0:01:55]}  Rxf3 {[%clk 0:01:49]} 22. gxf3 {[%clk 0:01:21]}  Qg8+ {[%clk 0:01:43]} 23. Kh1 {[%clk 0:01:17]}  Qf7 {[%clk 0:01:41]} 24. Qh3 {[%clk 0:01:06]}  Nd3 {[%clk 0:01:38]} 25. Rg1 {[%clk 0:01:02]}  Qf5 {[%clk 0:01:14]} 26. Qh6 {[%clk 0:00:41]}  Qxf3+ {[%clk 0:01:13]} 27. Rg2 {[%clk 0:00:42]}  Rg8 {[%clk 0:00:55]} 28. Ng5 {[%clk 0:00:40]}  Bxg5 {[%clk 0:00:27]} 29. Bxg5 {[%clk 0:00:41]}  Nxf2+ {[%clk 0:00:26]} 30. Kg1 {[%clk 0:00:40]}  Nh3+ {[%clk 0:00:26]} 31. Kh1 {[%clk 0:00:39]}  Nxg5 {[%clk 0:00:25]} 32. Qxe6 {[%clk 0:00:29]}  Nxe6 {[%clk 0:00:24]} 0-1


[Site "https://www.chess.com"]